fUSD/lending_fUSD_20240728
["ID","MTS","AMOUNT","RATE_DAILY","PERIOD"]
[333462635,1722154232444,-281.1116,0.00010775,2]
[333462637,1722154232453,-3175.6556,0.00010775,2]
[333462639,1722154232463,-165116.4901,0.00010775,2]
[333462641,1722154232472,-273.90957045,0.00010778,2]
[333462643,1722154232482,-194.2553856,0.0001078,2]
[333462645,1722154232491,-674.04080023,0.00010785,2]
[333462647,1722154232499,-420.0,0.00010833,2]
[333462649,1722154232508,-8850.17888377,0.00010852,2]
[333462651,1722154232520,-700.0,0.00010852,2]
[333462654,1722154232531,-956.69375819,0.00010852,2]
[333462656,1722154232542,-1417.0694747,0.00010852,2]
[333462658,1722154232553,-678.69156372,0.00010852,2]
[333462667,1722154238064,-23582.08335142,0.00010852,2]
[333462670,1722154238073,-98353.26086906,0.00010852,2]
[333462671,1722154238083,-19487.85577952,0.0001086,2]
[333462674,1722154238094,-3513.2,0.0001086,2]
[333462676,1722154238105,-5586.09890051,0.0001086,2]
[333462678,1722154238115,-28587.15468003,0.00010865,2]
[333462680,1722154238124,-12077.59550351,0.00010867,2]
[333462682,1722154238134,-10885.66043545,0.00010871,2]
[333462684,1722154238143,-1570.02057986,0.00010874,2]
[333462686,1722154238154,-78823.46990064,0.00010875,2]
[333462688,1722154238171,-353.61805159,0.00010875,2]
[333462700,1722154240589,-460.49136388,0.00010875,2]
[333462942,1722154243083,-270.34967834,0.00010875,2]
[333462951,1722154243137,-573.4957104,0.00010875,2]
[333462964,1722154243247,-1789.29207492,0.00010875,2]
[333462966,1722154243258,-406.07,0.00010875,2]
[333462969,1722154243270,-33638.62960276,0.00010875,2]
[333462971,1722154243279,-116315.41638253,0.00010878,2]
[333462972,1722154243288,-222.41050859,0.00010879,2]
[333462974,1722154243297,-28587.15468003,0.00010879,2]
[333462976,1722154243307,-116315.41638253,0.00010881,2]
[333462978,1722154243316,-1570.02057986,0.00010885,2]
[333462980,1722154243325,-74951.71923871,0.00010885,2]
[333462982,1722154243335,-10885.66043545,0.00010885,2]
[333462984,1722154243344,-54892.93645271,0.00010887,2]
[333462992,1722154243409,-421.401,0.00010887,2]
[333463066,1722154246087,-1280.55912122,0.00010887,2]
[333463067,1722154246099,-3109.92093836,0.00010887,2]
[333463068,1722154246142,-2139.91841431,0.00010887,2]
[333463069,1722154246154,-618.3903605,0.00010887,2]
[333463070,1722154246167,-1976.79,0.00010887,2]
[333463071,1722154246180,-2756.4879215,0.00010887,2]
[333463072,1722154246192,-1963.28462603,0.00010887,2]
[333463073,1722154246205,-1239.88380057,0.00010887,2]
[333463074,1722154246217,-2455.82852891,0.00010887,2]
[333463075,1722154246239,-2096.3180746,0.00010887,2]
[333463076,1722154246248,-3893.38030433,0.0001089,2]
[333463077,1722154246259,-393.76878671,0.0001089,2]
[333463078,1722154246276,-7790.44641247,0.0001089,2]
[333463079,1722154246285,-204.76009361,0.000109,2]
[333463080,1722154246295,-200.0,0.000109,2]
[333463081,1722154246304,-2196.77266759,0.000109,2]
[333463082,1722154246315,-854.0,0.000109,2]
[333463083,1722154246328,-3299.11777029,0.000109,2]
[333463084,1722154246363,-400.0,0.000109,2]
[333463085,1722154246374,-438.217861,0.000109,2]
[333463086,1722154246385,-582.82334579,0.000109,2]
[333463087,1722154246396,-2229.06835533,0.000109,2]
[333463088,1722154246405,-150.52377776,0.000109,2]
[333463089,1722154246415,-500.0,0.00010958,2]
[333463090,1722154246424,-500.0,0.00010958,2]
[333463091,1722154246433,-500.0,0.00010958,2]
[333463092,1722154246442,-148.47478043,0.00010958,2]
[333463093,1722154246453,-351.52521957,0.00010958,2]
[333463094,1722154246462,-500.0,0.00010958,2]
[333463095,1722154246472,-22.22190458,0.00010958,2]
[333463099,1722154351429,150.0,0.00016569,120]
[333463103,1722154530802,150.0,0.00018658,120]
[333463124,1722155432271,-710.3,8.219e-05,2]
[333463125,1722155432280,-300.0,9.82e-05,2]
[333463126,1722155432289,-300.0,9.82e-05,2]
[333463127,1722155432298,-21017.2,9.821e-05,2]
[333463128,1722155432307,-446.11,9.843e-05,2]
[333463129,1722155432317,-901.5665,9.848e-05,2]
[333463130,1722155432326,-530.21131214,9.848e-05,2]
[333463131,1722155432335,-488.0,9.849e-05,2]
[333463132,1722155432344,-512.0,9.959e-05,2]
[333463133,1722155432353,-250.0,9.975e-05,2]
[333463134,1722155432362,-334.13,0.00010241,2]
[333463135,1722155432371,-850.31,0.00010378,2]
[333463136,1722155432381,-150.99,0.00010378,2]
[333463137,1722155432390,-530.21131215,0.000104,2]
[333463138,1722155432399,-710.3,0.00010468,2]
[333463139,1722155432408,-299.99,0.00010476,2]
[333463140,1722155432418,-468.95,0.00010476,2]
[333463141,1722155432427,-4534.40209712,0.00010497,2]
[333463142,1722155432436,-12805.40907801,0.000105,2]
[333463143,1722155432445,-630.39,0.00010674,2]
[333463144,1722155432455,-150.0,0.00010674,2]
[333463145,1722155432465,-19864.52970058,0.00010675,2]
[333463146,1722155432681,-1676.12452515,0.00010675,2]
[333463147,1722155432699,-2032.85900448,0.00010675,2]
[333463148,1722155432710,-28839.96359556,0.00010675,2]
[333463149,1722155432722,-326.80050338,0.00010675,2]
[333463150,1722155432741,-2157.70172192,0.00010675,2]
[333463151,1722155432752,-9537.10640704,0.00010675,2]
[333463152,1722155432764,-588.74678369,0.00010675,2]
[333463153,1722155432775,-2009.17611856,0.00010675,2]
[333463160,1722155438266,-1519.28337537,0.00010675,2]
[333463161,1722155438323,-302.52178472,0.00010675,2]
[333463162,1722155438334,-2878.34064274,0.00010675,2]
[333463163,1722155438379,-4300.0,0.00010675,2]
[333463164,1722155438390,-408.19529702,0.00010675,2]
[333463165,1722155438436,-998.52381322,0.00010675,2]
[333463166,1722155438448,-343.26358931,0.00010675,2]
[333463167,1722155438697,-14736.84362093,0.00010675,2]
[333463168,1722155438709,-1886.88,0.00010675,2]
[333463169,1722155438721,-969.78150889,0.00010675,2]
[333463170,1722155438732,-1425.33982887,0.00010675,2]
[333463171,1722155438747,-416.25087857,0.00010675,2]
[333463172,1722155438756,-499.99,0.00010675,2]
[333463175,1722155438766,-194.2553857,0.0001078,2]
[333463176,1722155438775,-3370.7638,0.000108,2]
[333463177,1722155438785,-420.0,0.00010802,2]
[333463178,1722155438795,-420.0,0.00010802,2]
[333463179,1722155438805,-17555.07868839,0.0001088,2]
[333463180,1722155438817,-5496.73332799,0.0001088,2]
[333463181,1722155438826,-2424.0,0.0001089,2]
[333463182,1722155438836,-801.175,0.000109,2]
[333463183,1722155438845,-1620.5634,0.000109,2]
[333463184,1722155438855,-443.6594,0.000109,2]
[333463185,1722155438864,-1426.08927456,0.000109,2]
[333463195,1722155440335,-527.39556223,0.000109,2]
[333463196,1722155440347,-707.12336694,0.000109,2]
[333463197,1722155440458,-359.38972543,0.000109,2]
[333463198,1722155440471,-374.97266472,0.000109,2]
[333463199,1722155440485,-10000.0,0.000109,2]
[333463200,1722155440498,-10600.0,0.000109,2]
[333463201,1722155440508,-166.5468764,0.000109,2]
[333463202,1722155440519,-223.21652696,0.000109,2]
[333463203,1722155440528,-500.0,0.00010912,2]
[333463204,1722155440538,-477.77809542,0.00010958,2]
[333463205,1722155440549,-271.057395,0.00010958,2]
[333463206,1722155440767,-437.86061437,0.00010958,2]
[333463207,1722155440778,-500.0,0.00010958,2]
[333463208,1722155440787,-500.0,0.00010958,2]
[333463209,1722155440797,-500.0,0.00010958,2]
[333463211,1722155440806,-500.0,0.00010958,2]
[333463213,1722155440816,-596.54626666,0.00010958,2]
[333463215,1722155440825,-193.60971899,0.00010958,2]
[333463217,1722155440835,-349.30486435,0.00010958,2]
[333463218,1722155440844,-500.0,0.00010958,2]
[333463220,1722155440853,-500.0,0.00010958,2]
[333463222,1722155440863,-197.29,0.00010958,2]
[333463224,1722155440872,-500.0,0.00010958,2]
[333463226,1722155440881,-500.0,0.00010958,2]
[333463228,1722155440890,-500.0,0.00010958,2]
[333463230,1722155440900,-434.99486142,0.00010958,2]
[333463231,1722155440909,-500.0,0.00010958,2]
[333463233,1722155440918,-500.0,0.00010958,2]
[333463235,1722155440928,-252.106068,0.00010958,2]
[333463237,1722155440937,-3474.23,0.00010958,2]
[333463239,1722155440948,-3474.23,0.00010958,2]
[333463241,1722155440957,-3474.23,0.00010958,2]
[333463243,1722155440967,-500.0,0.00010958,2]
[333463245,1722155440976,-400.29,0.00010958,2]
[333463247,1722155440985,-500.0,0.00010958,2]
[333463249,1722155440995,-350.35,0.00010958,2]
[333463251,1722155441005,-500.0,0.00010958,2]
[333463253,1722155441014,-500.0,0.00010958,2]
[333463255,1722155441024,-240.18,0.00010958,2]
[333463257,1722155441033,-500.0,0.00010958,2]
[333463259,1722155441043,-500.0,0.00010958,2]
[333463260,1722155441052,-500.0,0.00010958,2]
[333463262,1722155441062,-500.0,0.00010958,2]
[333463264,1722155441071,-502.38179338,0.00010958,2]
[333463266,1722155441081,-482.97431417,0.00010958,2]
[333463268,1722155441091,-500.0,0.00010958,2]
[333463270,1722155441100,-500.0,0.00010958,2]
[333463272,1722155441110,-574.80425031,0.00010958,2]
[333463274,1722155441120,-500.0,0.00010958,2]
[333463276,1722155441130,-500.0,0.00010958,2]
[333463278,1722155441139,-500.0,0.00010958,2]
[333463280,1722155441148,-484.29756791,0.00010958,2]
[333463282,1722155441157,-96979.88753744,0.00010958,2]
[333463285,1722155441169,-104435.01007044,0.00010958,2]
[333463286,1722155441179,-3000.0,0.00010958,2]
[333463288,1722155441188,-200.0,0.00010959,2]
[333463290,1722155441198,-179.75,0.00010959,2]
[333463292,1722155441207,-1053.52,0.00010959,2]
[333463294,1722155441217,-150.0,0.00010959,2]
[333463295,1722155441226,-250.0,0.00010959,2]
[333463297,1722155441235,-680.64,0.00010959,2]
[333463299,1722155441244,-200.0,0.0001098,2]
[333463301,1722155441253,-9995.69,0.00010996,2]
[333463303,1722155441262,-550.0,0.00010996,2]
[333463304,1722155441271,-1033.386,0.00010996,2]
[333463306,1722155441280,-1995.0,0.00010996,2]
[333463308,1722155441290,-3284.0,0.00010996,2]
[333463309,1722155441299,-150.0,0.00010996,2]
[333463311,1722155441308,-197.69822985,0.00010997,2]
[333463313,1722155441317,-1581.5858388,0.00010997,2]
[333463315,1722155441326,-500.0,0.00010998,2]
[333463317,1722155441335,-355.8098882,0.00010998,2]
[333463318,1722155441345,-500.0,0.00010998,2]
[333463320,1722155441354,-500.0,0.00010998,2]
[333463322,1722155441363,-500.0,0.00010998,2]
[333463323,1722155441372,-500.0,0.00010998,2]
[333463325,1722155441382,-512.33735373,0.00010998,2]
[333463327,1722155441391,-500.0,0.00010998,2]
[333463329,1722155441401,-500.0,0.00010998,2]
[333463331,1722155441410,-500.0,0.00010999,2]
[333463332,1722155441419,-500.0,0.00010999,2]
[333463334,1722155441429,-500.0,0.00010999,2]
[333463336,1722155441438,-500.0,0.00010999,2]
[333463338,1722155441447,-551.531928,0.00010999,2]
[333463340,1722155441456,-500.0,0.00010999,2]
[333463341,1722155441466,-249.62,0.00010999,2]
[333463343,1722155441478,-200.0,0.00010999,2]
[333463345,1722155441489,-500.0,0.00010999,2]
[333463347,1722155441500,-500.0,0.00010999,2]
[333463349,1722155441511,-500.0,0.00010999,2]
[333463350,1722155441521,-647.29262577,0.00010999,2]
[333463352,1722155441530,-500.0,0.00010999,2]
[333463354,1722155441539,-564.16,0.00010999,2]
[333463356,1722155441548,-500.0,0.00010999,2]
[333463358,1722155441558,-544.93,0.00010999,2]
[333463359,1722155441568,-500.0,0.00010999,2]
[333463361,1722155441578,-500.0,0.00010999,2]
[333463363,1722155441587,-500.0,0.00010999,2]
[333463365,1722155441598,-500.0,0.00010999,2]
[333463367,1722155441607,-175.9896936,0.00010999,2]
[333463369,1722155441616,-500.0,0.00010999,2]
[333463371,1722155441625,-367.01214341,0.00010999,2]
[333463373,1722155441634,-500.0,0.00010999,2]
[333463374,1722155441643,-500.0,0.00010999,2]
[333463376,1722155441653,-500.0,0.00010999,2]
[333463378,1722155441662,-500.0,0.00010999,2]
[333463380,1722155441673,-438.16205669,0.00010999,2]
[333463382,1722155441682,-505.12521698,0.00010999,2]
[333463384,1722155441691,-627.83,0.00010999,2]
[333463386,1722155441702,-500.0,0.00010999,2]
[333463387,1722155441710,-500.0,0.00010999,2]
[333463389,1722155441719,-500.0,0.00010999,2]
[333463391,1722155441729,-616.12911668,0.00010999,2]
[333463393,1722155441739,-183.67273632,0.00010999,2]
[333463395,1722155441748,-500.0,0.00010999,2]
[333463396,1722155441757,-500.0,0.00010999,2]
[333463398,1722155441767,-500.0,0.00010999,2]
[333463400,1722155441777,-500.0,0.00010999,2]
[333463402,1722155441786,-500.0,0.00010999,2]
[333463404,1722155441796,-500.0,0.00010999,2]
[333463405,1722155441809,-500.0,0.00010999,2]
[333463407,1722155441819,-500.0,0.00010999,2]
[333463409,1722155441828,-500.0,0.00010999,2]
[333463411,1722155441837,-500.0,0.00010999,2]
[333463412,1722155441847,-500.0,0.00010999,2]
[333463414,1722155441856,-500.0,0.00010999,2]
[333463416,1722155441865,-500.0,0.00010999,2]
[333463418,1722155441874,-500.0,0.00010999,2]
[333463420,1722155441884,-500.0,0.00010999,2]
[333463422,1722155441893,-500.22872179,0.00010999,2]
[333463423,1722155441903,-491.28,0.00010999,2]
[333463425,1722155441913,-750.0,0.00010999,2]
[333463427,1722155441922,-500.0,0.00010999,2]
[333463429,1722155441932,-500.0,0.00010999,2]
[333463431,1722155441941,-500.0,0.00010999,2]
[333463433,1722155441951,-182.83,0.00010999,2]
[333463434,1722155441960,-3474.23,0.00010999,2]
[333463436,1722155441970,-3474.23,0.00010999,2]
[333463438,1722155441979,-3474.23,0.00010999,2]
[333463440,1722155441988,-3474.23,0.00010999,2]
[333463442,1722155441998,-3474.23,0.00010999,2]
[333463444,1722155442007,-2812.58580261,0.00010999,2]
[333463446,1722155442019,-661.64419739,0.00010999,2]
[333463448,1722155442029,-3474.23,0.00010999,2]
[333463449,1722155442037,-2519.93070914,0.00010999,2]
[333463451,1722155442048,-954.29929086,0.00010999,2]
[333463453,1722155442057,-2026.22264467,0.00010999,2]
[333463455,1722155442068,-1334.10610028,0.00010999,2]
[333463457,1722155442079,-113.90125505,0.00010999,2]
[333463459,1722155442089,-348.00374487,0.00010999,2]
[333463461,1722155442100,-325.41737,0.00010999,2]
[333463463,1722155442111,-1477.783724,0.00010999,2]
[333463465,1722155442122,-536.31180961,0.00010999,2]
[333463467,1722155442133,-485.2,0.00010999,2]
[333463469,1722155442144,-301.51335152,0.00010999,2]
[333463471,1722155442154,-747.06941148,0.00010999,2]
[333463473,1722155442165,-384.644286,0.00010999,2]
[333463475,1722155442176,-1441.0916001,0.00010999,2]
[333463477,1722155442188,-901.42470242,0.00010999,2]
[333463479,1722155442198,-399.05203403,0.00010999,2]
[333463580,1722155443330,-1088.28859305,0.00010739,2]
[333463582,1722155443339,-510.02569494,0.00010999,2]
[333463585,1722155443351,-669.05626928,0.00010999,2]
[333463589,1722155443386,-298.93134934,0.00010999,2]
[333463597,1722155443446,-1597.16465241,0.00010999,2]
[333463599,1722155443456,-3474.23,0.00010999,2]
[333463601,1722155443465,-3474.23,0.00010999,2]
[333463603,1722155443478,-3474.23,0.00010999,2]
[333463605,1722155443487,-3474.23,0.00010999,2]
[333463607,1722155443496,-3474.23,0.00010999,2]
[333463609,1722155443505,-3474.23,0.00010999,2]
[333463611,1722155443514,-3474.23,0.00010999,2]
[333463613,1722155443523,-3474.23,0.00010999,2]
[333463615,1722155443532,-3474.29,0.00010999,2]
[333463617,1722155443542,-3836.59621451,0.00010999,2]
[333463619,1722155443551,-1817.57578316,0.00010999,3]
[333463621,1722155443560,-5219.97,0.00010999,2]
[333463623,1722155443570,-151.0,0.00010999,2]
[333463625,1722155443579,-151.0,0.00010999,2]
[333463626,1722155443588,-300.690123,0.00010999,2]
[333463628,1722155443597,-500.0,0.00010999,2]
[333463630,1722155443607,-500.0,0.00010999,2]
[333463632,1722155443616,-500.0,0.00010999,2]
[333463634,1722155443625,-500.0,0.00010999,2]
[333463636,1722155443635,-500.0,0.00010999,2]
[333463638,1722155443644,-500.0,0.00010999,2]
[333463640,1722155443653,-500.0,0.00010999,2]
[333463642,1722155443662,-244.6671228,0.00010999,2]
[333463644,1722155443672,-500.0,0.00010999,2]
[333463646,1722155443682,-565.10596279,0.00010999,2]
[333463648,1722155443691,-500.0,0.00010999,2]
[333463650,1722155443702,-500.0,0.00010999,2]
[333463653,1722155443712,-500.0,0.00010999,2]
[333463655,1722155443721,-506.67075727,0.00010999,2]
[333463657,1722155443730,-151.0,0.00010999,2]
[333463658,1722155443739,-151.0,0.00010999,2]
[333463661,1722155443748,-151.0,0.00010999,2]
[333463663,1722155443757,-151.0,0.00010999,2]
[333463665,1722155443766,-2255.79387038,0.00010999,2]
[333463666,1722155443776,-218.471666,0.00010999,2]
[333463668,1722155443785,-151.0,0.00010999,2]
[333463670,1722155443794,-151.0,0.00010999,2]
[333463673,1722155443803,-151.0,0.00010999,2]
[333463674,1722155443812,-155.402012,0.00010999,2]
[333463676,1722155443822,-151.0,0.00010999,2]
[333463678,1722155443832,-151.0,0.00010999,2]
[333463680,1722155443841,-150.0,0.00010999,2]
[333463682,1722155443851,-151.0,0.00010999,2]
[333463684,1722155443860,-151.0,0.00010999,2]
[333463686,1722155443869,-151.0,0.00010999,2]
[333463688,1722155443879,-151.0,0.00010999,2]
[333463690,1722155443888,-152.070947,0.00010999,2]
[333463692,1722155443897,-151.0,0.00010999,2]
[333463694,1722155443907,-151.0,0.00010999,2]
[333463696,1722155443915,-151.098792,0.00010999,2]
[333463698,1722155443925,-151.0,0.00010999,2]
[333463700,1722155443935,-151.0,0.00010999,2]
[333463702,1722155443945,-232.634233,0.00010999,2]
[333463703,1722155443955,-151.0,0.00010999,2]
[333463704,1722155443965,-151.0,0.00010999,2]
[333463705,1722155443975,-151.0,0.00010999,2]
[333463706,1722155443985,-481.27126296,0.00010999,2]
[333463707,1722155443995,-27233.03887319,0.00011,2]
[333463708,1722155444013,-1113.8701207,0.00011,2]
[333463709,1722155444025,-14061.047,0.00011,2]
[333463710,1722155444036,-500.0,0.00011,2]
[333463711,1722155444047,-653.347,0.00011,2]
[333463712,1722155444058,-2361.44897298,0.00011,2]
[333463713,1722155444070,-45120.77113432,0.00011,2]
[333463717,1722155446344,-3387.85851264,0.00010446,2]
[333463718,1722155446400,-338.215,0.00010446,2]
[333463719,1722155446621,-779.76981013,0.00010446,2]
[333463720,1722155446631,-151.0,0.00010999,2]
[333463721,1722155446640,-151.0,0.00010999,2]
[333463722,1722155446649,-151.0,0.00010999,2]
[333463723,1722155446659,-151.0,0.00010999,2]
[333463724,1722155446668,-32.68383242,0.00010999,2]
[333463726,1722155491390,150.0,0.00016542,120]
[333463774,1722156631647,-731.82,8.219e-05,2]
[333463775,1722156631657,-300.0,9.999e-05,2]
[333463776,1722156631667,-1496.0980837,0.0001,2]
[333463777,1722156631679,-2153.5734172,0.0001,2]
[333463778,1722156631689,-8021.5963976,0.0001,2]
[333463779,1722156631698,-250.0,0.00010003,2]
[333463780,1722156631707,-390.4,0.00010073,2]
[333463781,1722156631717,-609.6,0.00010115,2]
[333463782,1722156631727,-150.0,0.00010466,2]
[333463783,1722156631736,-731.82,0.00010479,2]
[333463784,1722156631746,-12805.40907801,0.000105,2]
[333463785,1722156631755,-1683.9312762,0.00010799,2]
[333463786,1722156631765,-150.0,0.00010799,2]
[333463787,1722156631774,-281.7,0.00010799,2]
[333463788,1722156631783,-61846.97191048,0.000108,2]
[333463789,1722156631795,-10106.43869969,0.000108,2]
[333463790,1722156631813,-1500.0,0.000108,2]
[333463793,1722156637440,-619.9401,0.000108,2]
[333463794,1722156637502,-2212.02314122,0.000108,2]
[333463795,1722156637567,-4841.50028613,0.000108,2]
[333463796,1722156637580,-4592.99196248,0.000108,2]
[333463797,1722156637591,-1000.0,0.000108,2]
[333463798,1722156637600,-1104.1417,0.000108,2]
[333463799,1722156637609,-1807.2438,0.000108,2]
[333463800,1722156637618,-606.45987549,0.00010859,2]
[333463801,1722156637628,-499.99,0.00010859,2]
[333463802,1722156637636,-606.45987549,0.00010881,2]
[333463803,1722156637646,-606.45987549,0.00010885,2]
[333463804,1722156637655,-1380.0024,0.000109,2]
[333463805,1722156637664,-1010.22697251,0.000109,2]
[333463806,1722156637673,-1494.23379989,0.000109,2]
[333463807,1722156637684,-1097.72602781,0.000109,2]
[333463808,1722156637707,-7408.0401723,0.000109,2]
[333463809,1722156637717,-314.06557764,0.000109,2]
[333463810,1722156637726,-310.624996,0.00010958,2]
[333463811,1722156637735,-200.0,0.00010959,2]
[333463812,1722156637744,-250.0,0.00010959,2]
[333463813,1722156637753,-18642.445034,0.0001098,2]
[333463814,1722156637762,-5070.79,0.00010999,2]
[333463815,1722156637771,-500.0,0.00010999,2]
[333463816,1722156637781,-336.88988407,0.00010999,2]
[333463817,1722156637790,-66170.6550121,0.00011,2]
[333463982,1722156639547,-8944.33992842,0.00011,2]
[333463984,1722156639559,-5232.02281657,0.00011,2]
[333463986,1722156639569,-982.24203917,0.00011,2]
[333463996,1722156639661,-70196.8605845,0.00011,2]
[333464002,1722156639718,-293.71082604,0.00011,2]
[333464009,1722156639775,-17520.10022291,0.00011,2]
[333464011,1722156639785,-203.756,0.00011,2]
[333464013,1722156639796,-144396.39304879,0.00011,2]
[333464018,1722156639833,-492.09818283,0.00011,2]
[333464025,1722156639891,-662.68309162,0.00011,2]
[333464027,1722156639902,-558.89350208,0.00011,2]
[333464255,1722156642508,-75053.66821323,0.00011,2]
[333464257,1722156642519,-674.35,0.00011,2]
[333464267,1722156642619,-370.5881043,0.00011,2]
[333464273,1722156642674,-1537.11138417,0.00011,2]
[333464284,1722156642783,-401444.6230863,0.00011,2]
[333464291,1722156642838,-1715.41144929,0.00011,2]
[333464386,1722156645704,-3037.80189758,0.00011,2]
[333464387,1722156645762,-674.36273662,0.00011,2]
[333464388,1722156645873,-310.624996,0.00011,2]
[333464389,1722156645930,-407.60032001,0.00011,2]
[333464434,1722157831713,-710.82,8.219e-05,2]
[333464437,1722157831723,-150.0,9.888e-05,2]
[333464439,1722157831733,-161.581669,0.0001,14]
[333464440,1722157831742,-250.0,0.00010005,2]
[333464441,1722157831752,-37.86030392,0.00010036,2]
[333464442,1722157831827,-274.45969608,0.00010036,2]
[333464443,1722157831837,-779.76981013,0.00010446,2]
[333464444,1722157831846,-710.82,0.00010477,2]
[333464445,1722157831856,-300.0,0.00010499,2]
[333464446,1722157831865,-300.0,0.00010499,2]
[333464447,1722157831875,-1071.21028629,0.000105,2]
[333464448,1722157831887,-4384.90963218,0.000105,2]
[333464449,1722157831902,-842.30529409,0.000105,2]
[333464450,1722157831914,-6506.98386545,0.000105,2]
[333464451,1722157831923,-6282.25265772,0.00010839,2]
[333464452,1722157831934,-6594.65836655,0.00010839,2]
[333464453,1722157831950,-7416.35897573,0.00010839,2]
[333464454,1722157831960,-499.99,0.00010839,2]
[333464455,1722157831971,-428.22,0.00010839,2]
[333464456,1722157831981,-150.75147728,0.00010899,2]
[333464457,1722157831991,-1582.74137987,0.000109,2]
[333464458,1722157832003,-257.86882013,0.000109,2]
[333464459,1722157832013,-10000.0,0.000109,2]
[333464460,1722157832023,-300.2980198,0.000109,2]
[333464461,1722157832033,-150.75147728,0.000109,2]
[333464462,1722157832042,-500.0,0.00010912,2]
[333464463,1722157832052,-200.0,0.00010959,2]
[333464464,1722157832062,-289.21,0.00010959,5]
[333464465,1722157832072,-250.0,0.00010959,2]
[333464466,1722157832081,-732.19,0.00010959,2]
[333464467,1722157832090,-157.14,0.0001099,2]
[333464468,1722157832099,-150.0,0.00010996,2]
[333464469,1722157832109,-1664.0,0.00010996,2]
[333464470,1722157832118,-1829.0,0.00010996,2]
[333464471,1722157832127,-362.0,0.00010996,2]
[333464472,1722157832137,-1254.0,0.00010996,2]
[333464473,1722157832146,-150.613,0.00010996,2]
[333464474,1722157832155,-622.889,0.00010996,2]
[333464475,1722157832165,-566.165,0.00010996,2]
[333464476,1722157832174,-150.0,0.00010996,2]
[333464477,1722157832183,-2383.0,0.00010996,2]
[333464479,1722157832193,-548.0,0.00010996,2]
[333464481,1722157832202,-1995.0,0.00010996,2]
[333464483,1722157832212,-3284.0,0.00010996,2]
[333464484,1722157832222,-3562.517,0.00010996,2]
[333464486,1722157832231,-343.869,0.00010996,2]
[333464487,1722157832240,-871.996,0.00010996,2]
[333464489,1722157832250,-1000.23087099,0.00010997,2]
[333464490,1722157832259,-154.33032659,0.00010997,2]
[333464491,1722157832268,-265.7616776,0.00010998,2]
[333464492,1722157832278,-325.95,0.00010998,2]
[333464493,1722157832287,-500.0,0.00010998,2]
[333464494,1722157832296,-507.27463901,0.00010998,2]
[333464496,1722157832305,-500.0,0.00010998,2]
[333464497,1722157832318,-500.0,0.00010998,2]
[333464499,1722157832328,-379.46132279,0.00010998,2]
[333464501,1722157832337,-439.74739659,0.00010998,2]
[333464503,1722157832346,-502.74801619,0.00010998,2]
[333464505,1722157832357,-505.13375672,0.00010998,2]
[333464507,1722157832366,-637.87779135,0.00010998,2]
[333464509,1722157832375,-289.76727181,0.00010998,2]
[333464511,1722157832385,-2296.184537,0.00010998,2]
[333464513,1722157832395,-7596.9046736,0.00010998,2]
[333464514,1722157832404,-886.8315654,0.00010998,2]
[333464515,1722157832413,-58179.2700276,0.00010998,2]
[333464516,1722157832423,-500.0,0.00010998,2]
[333464517,1722157832432,-473.61824485,0.00010999,2]
[333464518,1722157832441,-272.584251,0.00010999,2]
[333464519,1722157832451,-522.5194356,0.00010999,2]
[333464520,1722157832461,-512.42832394,0.00010999,2]
[333464521,1722157832470,-272.62474372,0.00010999,2]
[333464522,1722157832479,-500.0,0.00010999,2]
[333464523,1722157832488,-500.0,0.00010999,2]
[333464524,1722157832498,-504.98126479,0.00010999,2]
[333464525,1722157832507,-501.44,0.00010999,2]